[Event "Titled Tuesday Blitz December 13 Early 2022"]
[White "Bodnaruk, Anastasia"]
[Black "Maksimovic, Bojan"]
[WhiteFideId "4181751"]
[BlackFideId "14408120"]
[WhiteElo "2314"]
[BlackElo "2462"]
[Result "0-1"]
[Round "07"]
[TimeControl "180+1"]
[Date "2022.12.14"]
[WhiteClock "0:00:08"]
[BlackClock "0:00:03"]

1. e4 {[%clk 0:03:00]}  c5 {[%clk 0:02:59]} 2. Nc3 {[%clk 0:02:57]}  e6 {[%clk 0:02:59]} 3. Nge2 {[%clk 0:02:53]}  d5 {[%clk 0:02:58]} 4. exd5 {[%clk 0:02:53]}  exd5 {[%clk 0:02:59]} 5. d4 {[%clk 0:02:53]}  Nf6 {[%clk 0:02:59]} 6. g3 {[%clk 0:02:51]}  cxd4 {[%clk 0:02:55]} 7. Nxd4 {[%clk 0:02:50]}  Nc6 {[%clk 0:02:55]} 8. Bg2 {[%clk 0:02:49]}  Bg4 {[%clk 0:02:54]} 9. f3 {[%clk 0:02:40]}  Bd7 {[%clk 0:02:54]} 10. Be3 {[%clk 0:02:36]}  a6 {[%clk 0:02:35]} 11. O-O {[%clk 0:02:34]}  Bd6 {[%clk 0:02:35]} 12. Kh1 {[%clk 0:02:28]}  O-O {[%clk 0:02:34]} 13. f4 {[%clk 0:02:28]}  Re8 {[%clk 0:02:28]} 14. Qd2 {[%clk 0:02:27]}  Ne4 {[%clk 0:01:42]} 15. Nxe4 {[%clk 0:02:16]}  dxe4 {[%clk 0:01:41]} 16. Rad1 {[%clk 0:01:59]}  Bc7 {[%clk 0:01:37]} 17. Nxc6 {[%clk 0:01:48]}  Bxc6 {[%clk 0:01:38]} 18. Qc3 {[%clk 0:01:49]}  Qc8 {[%clk 0:01:12]} 19. Bd4 {[%clk 0:01:31]}  f6 {[%clk 0:01:09]} 20. Rfe1 {[%clk 0:01:26]}  Qf5 {[%clk 0:01:08]} 21. Bb6 {[%clk 0:01:14]}  Bxb6 {[%clk 0:00:54]} 22. Qb3+ {[%clk 0:01:14]}  Kh8 {[%clk 0:00:42]} 23. Qxb6 {[%clk 0:01:14]}  Rac8 {[%clk 0:00:43]} 24. c3 {[%clk 0:01:08]}  h6 {[%clk 0:00:41]} 25. Re3 {[%clk 0:00:54]}  Re7 {[%clk 0:00:40]} 26. Rd8+ {[%clk 0:00:50]}  Rxd8 {[%clk 0:00:39]} 27. Qxd8+ {[%clk 0:00:50]}  Re8 {[%clk 0:00:40]} 28. Qd4 {[%clk 0:00:48]}  Qa5 {[%clk 0:00:32]} 29. a3 {[%clk 0:00:47]}  Rd8 {[%clk 0:00:30]} 30. Qc4 {[%clk 0:00:31]}  Rd1+ {[%clk 0:00:28]} 31. Bf1 {[%clk 0:00:31]}  Bb5 {[%clk 0:00:06]} 32. Qc8+ {[%clk 0:00:31]}  Rd8 {[%clk 0:00:06]} 33. Qf5 {[%clk 0:00:29]}  Qb6 {[%clk 0:00:04]} 34. Rxe4 {[%clk 0:00:08]}  Bxf1 {[%clk 0:00:03]} 35. Qg6 {[%clk 0:00:08]}  Bb5 {[%clk 0:00:02]} 36. c4 {[%clk 0:00:08]}  Bc6 {[%clk 0:00:03]} 0-1


[Site "https://www.chess.com"]

[Event "Titled Tuesday Blitz December 13 Early 2022"]
[White "Boros, Denes"]
[Black "Budrewicz, Krzysztof"]
[WhiteFideId "722340"]
[BlackFideId "1127950"]
[WhiteElo "2464"]
[BlackElo "2188"]
[Result "1-0"]
[Round "07"]
[TimeControl "180+1"]
[Date "2022.12.14"]
[WhiteClock "0:00:09"]
[BlackClock "0:00:04"]

1. Nc3 {[%clk 0:03:00]}  g6 {[%clk 0:02:56]} 2. d4 {[%clk 0:03:00]}  Bg7 {[%clk 0:02:56]} 3. e4 {[%clk 0:03:01]}  d6 {[%clk 0:02:55]} 4. h3 {[%clk 0:03:01]}  a6 {[%clk 0:02:54]} 5. a4 {[%clk 0:03:01]}  Nc6 {[%clk 0:02:54]} 6. Nf3 {[%clk 0:03:01]}  Nf6 {[%clk 0:02:53]} 7. Be3 {[%clk 0:03:01]}  O-O {[%clk 0:02:53]} 8. d5 {[%clk 0:02:59]}  Nb4 {[%clk 0:02:51]} 9. Qd2 {[%clk 0:02:58]}  a5 {[%clk 0:02:51]} 10. Bc4 {[%clk 0:02:54]}  c6 {[%clk 0:02:51]} 11. O-O {[%clk 0:02:50]}  Qc7 {[%clk 0:02:43]} 12. Bb3 {[%clk 0:02:49]}  Bd7 {[%clk 0:02:41]} 13. Bh6 {[%clk 0:02:47]}  c5 {[%clk 0:02:38]} 14. Bxg7 {[%clk 0:02:39]}  Kxg7 {[%clk 0:02:38]} 15. Bc4 {[%clk 0:02:40]}  e5 {[%clk 0:02:31]} 16. dxe6 {[%clk 0:02:35]}  Bxe6 {[%clk 0:02:31]} 17. Nb5 {[%clk 0:02:29]}  Qc6 {[%clk 0:02:23]} 18. Bxe6 {[%clk 0:02:29]}  fxe6 {[%clk 0:02:23]} 19. Qxd6 {[%clk 0:02:25]}  Rad8 {[%clk 0:01:59]} 20. Qe7+ {[%clk 0:02:19]}  Kg8 {[%clk 0:01:59]} 21. Ng5 {[%clk 0:02:06]}  Rde8 {[%clk 0:01:53]} 22. Qd6 {[%clk 0:02:06]}  Nxc2 {[%clk 0:01:45]} 23. Rac1 {[%clk 0:01:57]}  Nd4 {[%clk 0:01:31]} 24. Rxc5 {[%clk 0:01:55]}  Qxd6 {[%clk 0:01:07]} 25. Nxd6 {[%clk 0:01:56]}  Re7 {[%clk 0:01:08]} 26. Rd1 {[%clk 0:01:42]}  e5 {[%clk 0:00:57]} 27. Nb5 {[%clk 0:01:22]}  h6 {[%clk 0:00:39]} 28. Nxd4 {[%clk 0:01:15]}  hxg5 {[%clk 0:00:38]} 29. Nf3 {[%clk 0:01:11]}  b6 {[%clk 0:00:37]} 30. Rc6 {[%clk 0:01:06]}  Nxe4 {[%clk 0:00:36]} 31. Rxb6 {[%clk 0:01:00]}  Kg7 {[%clk 0:00:35]} 32. Rd5 {[%clk 0:00:48]}  Rc8 {[%clk 0:00:22]} 33. Rxe5 {[%clk 0:00:47]}  Rc1+ {[%clk 0:00:21]} 34. Kh2 {[%clk 0:00:48]}  Rxe5 {[%clk 0:00:20]} 35. Nxe5 {[%clk 0:00:48]}  Nxf2 {[%clk 0:00:20]} 36. Rxg6+ {[%clk 0:00:37]}  Kh7 {[%clk 0:00:21]} 37. Rc6 {[%clk 0:00:30]}  Rb1 {[%clk 0:00:14]} 38. Rc2 {[%clk 0:00:26]}  Ne4 {[%clk 0:00:14]} 39. Nc6 {[%clk 0:00:23]}  Ra1 {[%clk 0:00:13]} 40. b3 {[%clk 0:00:18]}  Kg6 {[%clk 0:00:14]} 41. Nxa5 {[%clk 0:00:18]}  Rb1 {[%clk 0:00:13]} 42. Re2 {[%clk 0:00:17]}  Kf5 {[%clk 0:00:11]} 43. g3 {[%clk 0:00:13]}  Nc5 {[%clk 0:00:10]} 44. Kg2 {[%clk 0:00:13]}  Nd3 {[%clk 0:00:08]} 45. Kf3 {[%clk 0:00:11]}  Ne5+ {[%clk 0:00:08]} 46. Ke3 {[%clk 0:00:11]}  Rg1 {[%clk 0:00:07]} 47. Kf2 {[%clk 0:00:10]}  Rb1 {[%clk 0:00:06]} 48. Nc4 {[%clk 0:00:10]}  Nd3+ {[%clk 0:00:05]} 49. Ke3 {[%clk 0:00:10]}  Nc5 {[%clk 0:00:06]} 50. Kd4 {[%clk 0:00:10]}  Nxb3+ {[%clk 0:00:06]} 51. Kc3 {[%clk 0:00:11]}  Nc5 {[%clk 0:00:06]} 52. a5 {[%clk 0:00:10]}  Rb3+ {[%clk 0:00:06]} 53. Kd4 {[%clk 0:00:09]}  Ne6+ {[%clk 0:00:06]} 54. Kd5 {[%clk 0:00:10]}  Nc7+ {[%clk 0:00:06]} 55. Kc6 {[%clk 0:00:10]}  Na6 {[%clk 0:00:06]} 56. Re5+ {[%clk 0:00:08]}  Kf6 {[%clk 0:00:06]} 57. g4 {[%clk 0:00:07]}  Rc3 {[%clk 0:00:06]} 58. Rf5+ {[%clk 0:00:07]}  Kg6 {[%clk 0:00:06]} 59. Kd5 {[%clk 0:00:07]}  Rd3+ {[%clk 0:00:05]} 60. Ke4 {[%clk 0:00:07]}  Rc3 {[%clk 0:00:04]} 61. Ne5+ {[%clk 0:00:08]}  Kh6 {[%clk 0:00:04]} 62. Rf6+ {[%clk 0:00:08]}  Kg7 {[%clk 0:00:04]} 63. Rxa6 {[%clk 0:00:09]} 1-0


[Site "https://www.chess.com"]

[Event "Titled Tuesday Blitz December 13 Early 2022"]
[White "Buchenau, Frank"]
[Black "Putri, Regita Desyari"]
[WhiteFideId "4604350"]
[BlackFideId "7109083"]
[WhiteElo "2157"]
[BlackElo "1930"]
[Result "1-0"]
[Round "07"]
[TimeControl "180+1"]
[Date "2022.12.14"]
[WhiteClock "0:00:17"]
[BlackClock "0:00:01"]

1. e4 {[%clk 0:03:00]}  e5 {[%clk 0:02:57]} 2. Bc4 {[%clk 0:03:00]}  Nf6 {[%clk 0:02:52]} 3. d3 {[%clk 0:03:00]}  Nc6 {[%clk 0:02:51]} 4. Nf3 {[%clk 0:03:00]}  Bb4+ {[%clk 0:02:50]} 5. c3 {[%clk 0:03:00]}  Be7 {[%clk 0:02:49]} 6. O-O {[%clk 0:03:00]}  O-O {[%clk 0:02:47]} 7. Re1 {[%clk 0:03:01]}  d6 {[%clk 0:02:43]} 8. Nbd2 {[%clk 0:03:01]}  Na5 {[%clk 0:02:43]} 9. Bb5 {[%clk 0:03:01]}  a6 {[%clk 0:02:39]} 10. Ba4 {[%clk 0:03:01]}  b5 {[%clk 0:02:39]} 11. Bc2 {[%clk 0:03:01]}  c5 {[%clk 0:02:32]} 12. a4 {[%clk 0:03:00]}  Bb7 {[%clk 0:02:31]} 13. axb5 {[%clk 0:02:59]}  axb5 {[%clk 0:02:32]} 14. Nf1 {[%clk 0:02:55]}  Re8 {[%clk 0:02:28]} 15. Ng3 {[%clk 0:02:50]}  g6 {[%clk 0:02:29]} 16. h3 {[%clk 0:02:34]}  Bf8 {[%clk 0:02:21]} 17. Bg5 {[%clk 0:02:29]}  Bg7 {[%clk 0:02:20]} 18. Qd2 {[%clk 0:02:28]}  Nc6 {[%clk 0:02:17]} 19. Nh2 {[%clk 0:02:24]}  Qc7 {[%clk 0:02:07]} 20. Bh6 {[%clk 0:02:11]}  Bh8 {[%clk 0:01:55]} 21. f4 {[%clk 0:02:10]}  Rxa1 {[%clk 0:01:39]} 22. Rxa1 {[%clk 0:02:09]}  d5 {[%clk 0:01:38]} 23. fxe5 {[%clk 0:02:02]}  Qxe5 {[%clk 0:01:39]} 24. Bf4 {[%clk 0:02:01]}  Qe6 {[%clk 0:01:35]} 25. Nf3 {[%clk 0:01:39]}  c4 {[%clk 0:01:10]} 26. e5 {[%clk 0:01:35]}  cxd3 {[%clk 0:01:03]} 27. Bxd3 {[%clk 0:01:32]}  Nd7 {[%clk 0:00:58]} 28. Nd4 {[%clk 0:01:31]}  Nxd4 {[%clk 0:00:54]} 29. cxd4 {[%clk 0:01:31]}  Qb6 {[%clk 0:00:55]} 30. Qb4 {[%clk 0:01:27]}  Bc6 {[%clk 0:00:52]} 31. Kh2 {[%clk 0:01:16]}  Bg7 {[%clk 0:00:52]} 32. Ne2 {[%clk 0:01:04]}  Bf8 {[%clk 0:00:51]} 33. Qa5 {[%clk 0:01:04]}  Qb7 {[%clk 0:00:48]} 34. Qa7 {[%clk 0:01:02]}  Qc8 {[%clk 0:00:20]} 35. Rc1 {[%clk 0:01:00]}  Nb8 {[%clk 0:00:06]} 36. Bxb5 {[%clk 0:00:58]}  Qe6 {[%clk 0:00:06]} 37. Bxc6 {[%clk 0:00:49]}  Nxc6 {[%clk 0:00:07]} 38. Qb6 {[%clk 0:00:49]}  Nb4 {[%clk 0:00:02]} 39. Qxe6 {[%clk 0:00:47]}  fxe6 {[%clk 0:00:02]} 40. Rc3 {[%clk 0:00:39]}  Na2 {[%clk 0:00:01]} 41. Rc7 {[%clk 0:00:36]}  Nb4 {[%clk 0:00:02]} 42. Bd2 {[%clk 0:00:32]}  Nd3 {[%clk 0:00:03]} 43. Bc3 {[%clk 0:00:29]}  Nf2 {[%clk 0:00:02]} 44. Nf4 {[%clk 0:00:28]}  Ne4 {[%clk 0:00:03]} 45. h4 {[%clk 0:00:22]}  Bh6 {[%clk 0:00:04]} 46. Nd3 {[%clk 0:00:19]}  Be3 {[%clk 0:00:01]} 47. Nc5 {[%clk 0:00:17]} 1-0


[Site "https://www.chess.com"]

[Event "Titled Tuesday Blitz December 13 Early 2022"]
[White "Clawitter, Craig"]
[Black "Osinovsky, Stepan"]
[WhiteFideId "2023105"]
[BlackFideId "4157354"]
[WhiteElo "2193"]
[BlackElo "2222"]
[Result "0-1"]
[Round "07"]
[TimeControl "180+1"]
[Date "2022.12.14"]
[WhiteClock "0:00:02"]
[BlackClock "0:00:10"]

1. e4 {[%clk 0:02:59]}  e5 {[%clk 0:02:50]} 2. Nf3 {[%clk 0:02:58]}  Nc6 {[%clk 0:02:49]} 3. Bb5 {[%clk 0:02:59]}  a6 {[%clk 0:02:49]} 4. Ba4 {[%clk 0:02:59]}  Nf6 {[%clk 0:02:49]} 5. O-O {[%clk 0:03:00]}  Be7 {[%clk 0:02:48]} 6. d3 {[%clk 0:03:00]}  b5 {[%clk 0:02:48]} 7. Bb3 {[%clk 0:03:01]}  O-O {[%clk 0:02:49]} 8. Nc3 {[%clk 0:03:01]}  Re8 {[%clk 0:02:44]} 9. a4 {[%clk 0:02:51]}  b4 {[%clk 0:02:38]} 10. Nd5 {[%clk 0:02:49]}  h6 {[%clk 0:02:28]} 11. a5 {[%clk 0:02:48]}  Bf8 {[%clk 0:02:27]} 12. Bd2 {[%clk 0:02:39]}  Bb7 {[%clk 0:02:27]} 13. Qe1 {[%clk 0:02:35]}  Nd4 {[%clk 0:02:26]} 14. Nxd4 {[%clk 0:02:31]}  exd4 {[%clk 0:02:20]} 15. Nxf6+ {[%clk 0:02:15]}  Qxf6 {[%clk 0:02:21]} 16. Bxb4 {[%clk 0:02:16]}  c5 {[%clk 0:02:14]} 17. Bd2 {[%clk 0:02:13]}  d5 {[%clk 0:02:13]} 18. f3 {[%clk 0:02:14]}  c4 {[%clk 0:02:05]} 19. Ba4 {[%clk 0:01:56]}  Re6 {[%clk 0:02:03]} 20. Qg3 {[%clk 0:01:49]}  Bd6 {[%clk 0:01:57]} 21. Qh3 {[%clk 0:01:36]}  Qg6 {[%clk 0:01:21]} 22. Bd7 {[%clk 0:01:31]}  Re7 {[%clk 0:01:09]} 23. Bf5 {[%clk 0:01:23]}  Qf6 {[%clk 0:01:07]} 24. Rae1 {[%clk 0:01:15]}  Rae8 {[%clk 0:00:48]} 25. Re2 {[%clk 0:00:30]}  Re5 {[%clk 0:00:24]} 26. f4 {[%clk 0:00:29]}  Rxf5 {[%clk 0:00:23]} 27. Rfe1 {[%clk 0:00:08]}  Rxf4 {[%clk 0:00:19]} 28. Bxf4 {[%clk 0:00:08]}  Bxf4 {[%clk 0:00:20]} 29. exd5 {[%clk 0:00:08]}  Be3+ {[%clk 0:00:17]} 30. Kh1 {[%clk 0:00:08]}  Bxd5 {[%clk 0:00:15]} 31. dxc4 {[%clk 0:00:08]}  Bxc4 {[%clk 0:00:15]} 32. Rxe3 {[%clk 0:00:09]}  dxe3 {[%clk 0:00:16]} 33. b3 {[%clk 0:00:06]}  e2 {[%clk 0:00:15]} 34. Qf3 {[%clk 0:00:03]}  Qxf3 {[%clk 0:00:13]} 35. gxf3 {[%clk 0:00:04]}  Bd5 {[%clk 0:00:13]} 36. Kg2 {[%clk 0:00:03]}  f5 {[%clk 0:00:13]} 37. Kf2 {[%clk 0:00:03]}  Kf7 {[%clk 0:00:12]} 38. Rxe2 {[%clk 0:00:04]}  Rxe2+ {[%clk 0:00:12]} 39. Kxe2 {[%clk 0:00:05]}  Ke6 {[%clk 0:00:11]} 40. c4 {[%clk 0:00:05]}  Bc6 {[%clk 0:00:12]} 41. Ke3 {[%clk 0:00:04]}  g5 {[%clk 0:00:11]} 42. f4 {[%clk 0:00:04]}  g4 {[%clk 0:00:11]} 43. b4 {[%clk 0:00:03]}  h5 {[%clk 0:00:11]} 44. b5 {[%clk 0:00:02]}  axb5 {[%clk 0:00:11]} 45. a6 {[%clk 0:00:02]}  b4 {[%clk 0:00:11]} 46. a7 {[%clk 0:00:01]}  h4 {[%clk 0:00:10]} 47. a8=Q {[%clk 0:00:02]}  Bxa8 {[%clk 0:00:10]} 0-1


[Site "https://www.chess.com"]

[Event "Titled Tuesday Blitz December 13 Early 2022"]
[White "Crevatin, Leo"]
[Black "Sovetbekova, Nurai"]
[WhiteFideId "1726307"]
[BlackFideId "13801910"]
[WhiteElo "2190"]
[BlackElo "1925"]
[Result "1-0"]
[Round "07"]
[TimeControl "180+1"]
[Date "2022.12.14"]
[WhiteClock "0:00:10"]
[BlackClock "0:00:10"]

1. d4 {[%clk 0:02:57]}  Nf6 {[%clk 0:02:59]} 2. Bf4 {[%clk 0:02:56]}  g6 {[%clk 0:02:59]} 3. e3 {[%clk 0:02:57]}  Bg7 {[%clk 0:02:59]} 4. Nf3 {[%clk 0:02:57]}  O-O {[%clk 0:02:59]} 5. Be2 {[%clk 0:02:57]}  d6 {[%clk 0:02:57]} 6. h3 {[%clk 0:02:58]}  c5 {[%clk 0:02:56]} 7. O-O {[%clk 0:02:54]}  Qb6 {[%clk 0:02:54]} 8. Nbd2 {[%clk 0:02:53]}  Be6 {[%clk 0:02:51]} 9. Nc4 {[%clk 0:02:30]}  Bxc4 {[%clk 0:02:49]} 10. Bxc4 {[%clk 0:02:31]}  cxd4 {[%clk 0:02:43]} 11. exd4 {[%clk 0:02:30]}  Nc6 {[%clk 0:02:37]} 12. Rb1 {[%clk 0:02:25]}  Rac8 {[%clk 0:02:34]} 13. Bb3 {[%clk 0:02:02]}  Rfd8 {[%clk 0:02:11]} 14. c3 {[%clk 0:01:56]}  e5 {[%clk 0:02:05]} 15. Be3 {[%clk 0:01:56]}  exd4 {[%clk 0:02:00]} 16. Nxd4 {[%clk 0:01:55]}  Nxd4 {[%clk 0:01:54]} 17. Bxd4 {[%clk 0:01:53]}  Qc7 {[%clk 0:01:53]} 18. Qf3 {[%clk 0:01:53]}  Ne8 {[%clk 0:01:46]} 19. Rbd1 {[%clk 0:01:50]}  Bxd4 {[%clk 0:01:43]} 20. Rxd4 {[%clk 0:01:50]}  Ng7 {[%clk 0:01:43]} 21. Rfd1 {[%clk 0:01:47]}  Nf5 {[%clk 0:01:29]} 22. Rd5 {[%clk 0:01:45]}  Ne7 {[%clk 0:01:20]} 23. R5d2 {[%clk 0:01:32]}  Nc6 {[%clk 0:01:18]} 24. Qf6 {[%clk 0:01:27]}  Na5 {[%clk 0:01:00]} 25. Rxd6 {[%clk 0:01:20]}  Rxd6 {[%clk 0:00:58]} 26. Qxd6 {[%clk 0:01:19]}  Nxb3 {[%clk 0:00:57]} 27. Qxc7 {[%clk 0:01:19]}  Rxc7 {[%clk 0:00:57]} 28. axb3 {[%clk 0:01:19]}  Kg7 {[%clk 0:00:55]} 29. Rd6 {[%clk 0:01:17]}  Kf8 {[%clk 0:00:52]} 30. g4 {[%clk 0:01:17]}  Ke7 {[%clk 0:00:52]} 31. Rd4 {[%clk 0:01:13]}  Rc5 {[%clk 0:00:49]} 32. Kf1 {[%clk 0:01:13]}  Rb5 {[%clk 0:00:48]} 33. b4 {[%clk 0:01:11]}  Re5 {[%clk 0:00:44]} 34. Rd2 {[%clk 0:01:10]}  Kf6 {[%clk 0:00:40]} 35. Rd7 {[%clk 0:01:08]}  Rb5 {[%clk 0:00:37]} 36. Rd2 {[%clk 0:01:01]}  Ke6 {[%clk 0:00:36]} 37. Ke2 {[%clk 0:01:01]}  Re5+ {[%clk 0:00:36]} 38. Kd3 {[%clk 0:01:00]}  Rd5+ {[%clk 0:00:36]} 39. Kc2 {[%clk 0:00:53]}  Re5 {[%clk 0:00:36]} 40. Kb3 {[%clk 0:00:48]}  Re1 {[%clk 0:00:35]} 41. c4 {[%clk 0:00:47]}  Rh1 {[%clk 0:00:33]} 42. Rd3 {[%clk 0:00:47]}  Rh2 {[%clk 0:00:30]} 43. Rf3 {[%clk 0:00:47]}  f5 {[%clk 0:00:29]} 44. gxf5+ {[%clk 0:00:47]}  gxf5 {[%clk 0:00:30]} 45. Kc3 {[%clk 0:00:45]}  Ke5 {[%clk 0:00:30]} 46. Kd3 {[%clk 0:00:44]}  Rh1 {[%clk 0:00:29]} 47. b5 {[%clk 0:00:36]}  Rd1+ {[%clk 0:00:26]} 48. Kc2 {[%clk 0:00:36]}  Rf1 {[%clk 0:00:23]} 49. Kd2 {[%clk 0:00:29]}  Ke4 {[%clk 0:00:22]} 50. Re3+ {[%clk 0:00:27]}  Kd4 {[%clk 0:00:19]} 51. Ke2 {[%clk 0:00:28]}  Rb1 {[%clk 0:00:19]} 52. b3 {[%clk 0:00:28]}  f4 {[%clk 0:00:15]} 53. Rd3+ {[%clk 0:00:20]}  Ke4 {[%clk 0:00:15]} 54. f3+ {[%clk 0:00:20]}  Ke5 {[%clk 0:00:13]} 55. Kd2 {[%clk 0:00:17]}  Rh1 {[%clk 0:00:12]} 56. Rd5+ {[%clk 0:00:16]}  Ke6 {[%clk 0:00:10]} 57. Rh5 {[%clk 0:00:17]}  Rb1 {[%clk 0:00:09]} 58. Kc2 {[%clk 0:00:16]}  Rf1 {[%clk 0:00:09]} 59. Rxh7 {[%clk 0:00:16]}  Rxf3 {[%clk 0:00:09]} 60. Rxb7 {[%clk 0:00:14]}  Rxh3 {[%clk 0:00:09]} 61. Rxa7 {[%clk 0:00:14]}  f3 {[%clk 0:00:10]} 62. Kd2 {[%clk 0:00:10]}  Kf5 {[%clk 0:00:09]} 63. Ke3 {[%clk 0:00:09]}  Kg4 {[%clk 0:00:09]} 64. Rg7+ {[%clk 0:00:08]}  Kf5 {[%clk 0:00:09]} 65. Rf7+ {[%clk 0:00:08]}  Kg4 {[%clk 0:00:10]} 66. Rf4+ {[%clk 0:00:08]}  Kg3 {[%clk 0:00:10]} 67. Rxf3+ {[%clk 0:00:09]}  Kg4 {[%clk 0:00:10]} 68. Rxh3 {[%clk 0:00:10]} 1-0


[Site "https://www.chess.com"]

[Event "Titled Tuesday Blitz December 13 Early 2022"]
[White "Derjabin, Ilja"]
[Black "Akylbekov, Nasyr"]
[WhiteFideId "14104768"]
[BlackFideId "13800353"]
[WhiteElo "2309"]
[BlackElo "2310"]
[Result "1-0"]
[Round "07"]
[TimeControl "180+1"]
[Date "2022.12.14"]
[WhiteClock "0:01:57"]
[BlackClock "0:01:57"]

1. d4 {[%clk 0:02:59]}  Nf6 {[%clk 0:02:59]} 2. c4 {[%clk 0:02:59]}  e6 {[%clk 0:03:00]} 3. Nc3 {[%clk 0:02:59]}  Bb4 {[%clk 0:03:00]} 4. a3 {[%clk 0:02:59]}  Bxc3+ {[%clk 0:03:00]} 5. bxc3 {[%clk 0:03:00]}  c5 {[%clk 0:03:01]} 6. f3 {[%clk 0:03:01]}  Qa5 {[%clk 0:03:02]} 7. Bd2 {[%clk 0:03:01]}  O-O {[%clk 0:03:01]} 8. e4 {[%clk 0:03:01]}  d6 {[%clk 0:03:01]} 9. Bd3 {[%clk 0:02:59]}  Nc6 {[%clk 0:03:01]} 10. Ne2 {[%clk 0:02:58]}  Qb6 {[%clk 0:03:01]} 11. Rb1 {[%clk 0:02:58]}  Qc7 {[%clk 0:03:01]} 12. O-O {[%clk 0:02:57]}  b6 {[%clk 0:03:02]} 13. f4 {[%clk 0:02:55]}  e5 {[%clk 0:02:59]} 14. fxe5 {[%clk 0:02:54]}  dxe5 {[%clk 0:02:59]} 15. d5 {[%clk 0:02:49]}  Ne7 {[%clk 0:02:59]} 16. Rxf6 {[%clk 0:02:47]}  gxf6 {[%clk 0:02:59]} 17. Ng3 {[%clk 0:02:46]}  Qd7 {[%clk 0:02:41]} 18. Nh5 {[%clk 0:02:42]}  Qd6 {[%clk 0:02:34]} 19. Qf3 {[%clk 0:02:28]}  Kh8 {[%clk 0:02:30]} 20. Nxf6 {[%clk 0:02:26]}  Ng8 {[%clk 0:02:29]} 21. Bg5 {[%clk 0:02:14]}  Kg7 {[%clk 0:02:00]} 22. Rf1 {[%clk 0:02:10]}  Bd7 {[%clk 0:02:00]} 23. Qg3 {[%clk 0:01:57]}  Kh8 {[%clk 0:01:57]} 24. Qh4 {[%clk 0:01:57]} 1-0


[Site "https://www.chess.com"]

[Event "Titled Tuesday Blitz December 13 Early 2022"]
[White "Diaz Rosas, Julio Cesar"]
[Black "Albertini, Luca"]
[WhiteFideId "5105099"]
[BlackFideId "847038"]
[WhiteElo "2246"]
[BlackElo "2207"]
[Result "0-1"]
[Round "07"]
[TimeControl "180+1"]
[Date "2022.12.14"]
[WhiteClock "0:00:10"]
[BlackClock "0:00:42"]

1. d4 {[%clk 0:03:00]}  d5 {[%clk 0:02:59]} 2. c4 {[%clk 0:03:00]}  e6 {[%clk 0:02:58]} 3. Nf3 {[%clk 0:02:59]}  Nf6 {[%clk 0:02:59]} 4. Qc2 {[%clk 0:02:58]}  Bb4+ {[%clk 0:02:58]} 5. Bd2 {[%clk 0:02:58]}  a5 {[%clk 0:02:57]} 6. g3 {[%clk 0:02:56]}  O-O {[%clk 0:02:57]} 7. Bg2 {[%clk 0:02:57]}  c6 {[%clk 0:02:57]} 8. O-O {[%clk 0:02:57]}  b6 {[%clk 0:02:57]} 9. Bf4 {[%clk 0:02:53]}  Bd6 {[%clk 0:02:55]} 10. Bxd6 {[%clk 0:02:49]}  Qxd6 {[%clk 0:02:56]} 11. Rd1 {[%clk 0:02:49]}  Ba6 {[%clk 0:02:55]} 12. b3 {[%clk 0:02:48]}  Nbd7 {[%clk 0:02:52]} 13. Nc3 {[%clk 0:02:48]}  dxc4 {[%clk 0:02:48]} 14. e4 {[%clk 0:02:48]}  cxb3 {[%clk 0:02:44]} 15. axb3 {[%clk 0:02:49]}  Qe7 {[%clk 0:02:40]} 16. e5 {[%clk 0:02:47]}  Nd5 {[%clk 0:02:40]} 17. Ne4 {[%clk 0:02:47]}  Rac8 {[%clk 0:02:26]} 18. h4 {[%clk 0:02:45]}  c5 {[%clk 0:02:24]} 19. Nd6 {[%clk 0:02:41]}  Rc6 {[%clk 0:02:19]} 20. Ng5 {[%clk 0:02:35]}  g6 {[%clk 0:02:15]} 21. Re1 {[%clk 0:02:23]}  Nb4 {[%clk 0:01:55]} 22. Qd2 {[%clk 0:02:17]}  Rc7 {[%clk 0:01:43]} 23. Nge4 {[%clk 0:02:07]}  cxd4 {[%clk 0:01:39]} 24. Qxd4 {[%clk 0:01:45]}  Nc2 {[%clk 0:01:30]} 25. Qb2 {[%clk 0:01:45]}  Nxa1 {[%clk 0:01:26]} 26. Qxa1 {[%clk 0:01:46]}  Bd3 {[%clk 0:01:13]} 27. Ng5 {[%clk 0:01:37]}  Rc5 {[%clk 0:01:07]} 28. Qd4 {[%clk 0:01:32]}  Bc2 {[%clk 0:00:59]} 29. Qf4 {[%clk 0:01:25]}  Nxe5 {[%clk 0:00:51]} 30. Rxe5 {[%clk 0:00:13]}  Qxd6 {[%clk 0:00:51]} 31. Nxh7 {[%clk 0:00:13]}  Qxe5 {[%clk 0:00:43]} 32. Nf6+ {[%clk 0:00:10]}  Kg7 {[%clk 0:00:42]} 0-1


[Site "https://www.chess.com"]

[Event "Titled Tuesday Blitz December 13 Early 2022"]
[White "Donchenko, Alexander"]
[Black "Fedoseev, Vladimir"]
[WhiteFideId "24603295"]
[BlackFideId "24130737"]
[WhiteElo "2581"]
[BlackElo "2733"]
[Result "0-1"]
[Round "07"]
[TimeControl "180+1"]
[Date "2022.12.13"]
[WhiteClock "0:01:02"]
[BlackClock "0:01:05"]

1. Nf3 {[%clk 0:03:00]}  Nf6 {[%clk 0:02:54]} 2. g3 {[%clk 0:03:01]}  b5 {[%clk 0:02:52]} 3. Bg2 {[%clk 0:03:00]}  Bb7 {[%clk 0:02:51]} 4. Na3 {[%clk 0:03:00]}  b4 {[%clk 0:02:46]} 5. Nc4 {[%clk 0:03:01]}  a5 {[%clk 0:02:46]} 6. d3 {[%clk 0:02:59]}  e6 {[%clk 0:02:45]} 7. O-O {[%clk 0:02:58]}  Be7 {[%clk 0:02:45]} 8. e4 {[%clk 0:02:58]}  d5 {[%clk 0:02:45]} 9. exd5 {[%clk 0:02:58]}  Nxd5 {[%clk 0:02:46]} 10. Re1 {[%clk 0:02:56]}  O-O {[%clk 0:02:46]} 11. Nfe5 {[%clk 0:02:52]}  Nd7 {[%clk 0:02:32]} 12. a3 {[%clk 0:02:49]}  Nxe5 {[%clk 0:02:30]} 13. Nxe5 {[%clk 0:02:48]}  c5 {[%clk 0:02:25]} 14. a4 {[%clk 0:02:35]}  Qc7 {[%clk 0:02:16]} 15. Qe2 {[%clk 0:02:34]}  Rae8 {[%clk 0:02:08]} 16. h4 {[%clk 0:02:32]}  f6 {[%clk 0:01:54]} 17. Nc4 {[%clk 0:02:22]}  Bd8 {[%clk 0:01:46]} 18. h5 {[%clk 0:02:20]}  Qd7 {[%clk 0:01:41]} 19. Qg4 {[%clk 0:02:18]}  Bc7 {[%clk 0:01:36]} 20. Bd2 {[%clk 0:02:14]}  f5 {[%clk 0:01:34]} 21. Qe2 {[%clk 0:02:01]}  e5 {[%clk 0:01:33]} 22. h6 {[%clk 0:01:48]}  g6 {[%clk 0:01:33]} 23. Bg5 {[%clk 0:01:46]}  Bc6 {[%clk 0:01:27]} 24. Qd2 {[%clk 0:01:41]}  f4 {[%clk 0:01:24]} 25. Qd1 {[%clk 0:01:27]}  Qf5 {[%clk 0:01:21]} 26. Bh4 {[%clk 0:01:27]}  f3 {[%clk 0:01:10]} 27. Bf1 {[%clk 0:01:11]}  g5 {[%clk 0:01:09]} 28. g4 {[%clk 0:01:11]}  Qxg4+ {[%clk 0:01:10]} 29. Bg3 {[%clk 0:01:12]}  e4 {[%clk 0:01:10]} 30. dxe4 {[%clk 0:01:10]}  Bxg3 {[%clk 0:01:10]} 31. exd5 {[%clk 0:01:02]}  Bxf2+ {[%clk 0:01:05]} 0-1


[Site "https://www.chess.com"]